fUSD/lending_fUSD_20240329
["ID","MTS","AMOUNT","RATE_DAILY","PERIOD"]
[320995083,1711732284089,-1165.91,0.0005452,120]
[320995084,1711732284098,-500.0,0.0005452,120]
[320995085,1711732284108,-4577.78,0.0005452,21]
[320995086,1711732284117,-77695.79852832,0.00054525,2]
[320995087,1711732284129,-9435.36441411,0.00054525,2]
[320995088,1711732284168,-2261.25115539,0.00054525,2]
[320995089,1711732284188,-1000.0,0.00054525,2]
[320995090,1711732284216,-3405.87499477,0.00052054,120]
[320995091,1711732284228,-399.00500523,0.00052054,120]
[320995092,1711732284237,-500.0,0.00054246,2]
[320995093,1711732284246,-1464.72996745,0.00054525,2]
[320995094,1711732284257,-1574.10640457,0.00054525,2]
[320995095,1711732284273,-4161.72316081,0.00054525,2]
[320995096,1711732284408,-1e-08,0.00054525,2]
[320995097,1711732284963,-2090.92505215,0.00049766,2]
[320995098,1711732284976,-306.4404425,0.00049766,2]
[320995099,1711732284985,-500.0,0.00052054,120]
[320995100,1711732284994,-4191.70003613,0.00052054,120]
[320995101,1711732285025,-217.56285418,0.00052054,120]
[320995102,1711732286933,-153.87710969,0.00052054,120]
[320995103,1711732286943,-321.62289252,0.00052054,120]
[320995104,1711732287648,-277.37815344,0.00049765,4]
[320995105,1711732287658,-178.37710748,0.00052054,120]
[320995106,1711732287675,-500.0,0.00052054,120]
[320995107,1711732287684,-500.0,0.00052054,120]
[320995108,1711732287695,-500.0,0.00052054,120]
[320995109,1711732287704,-500.0,0.00052054,120]
[320995110,1711732287714,-3804.88,0.00052328,120]
[320995111,1711732287724,-151.0,0.00052328,120]
[320995112,1711732287733,-4563.14,0.00052328,120]
[320995113,1711732287744,-500.0,0.00052328,120]
[320995114,1711732287753,-500.0,0.00052328,120]
[320995115,1711732287762,-151.0,0.00052328,120]
[320995116,1711732287771,-500.0,0.00052328,120]
[320995117,1711732287781,-500.0,0.00052328,120]
[320995118,1711732287790,-215.404964,0.00052328,120]
[320995119,1711732287800,-3804.88,0.00052602,120]
[320995120,1711732287810,-4563.14,0.00052602,120]
[320995121,1711732287819,-500.0,0.00052602,120]
[320995122,1711732287829,-500.0,0.00052602,120]
[320995123,1711732287839,-3804.88,0.00052876,120]
[320995124,1711732287849,-4563.14,0.00052876,120]
[320995125,1711732287860,-500.0,0.00052876,120]
[320995126,1711732287870,-500.0,0.00052876,120]
[320995127,1711732287880,-151.0,0.000529,120]
[320995128,1711732287889,-151.0,0.000529,120]
[320995129,1711732287899,-3804.88,0.0005315,120]
[320995130,1711732287909,-4563.14,0.0005315,120]
[320995131,1711732287919,-641.87312283,0.0005315,120]
[320995132,1711732287929,-3804.88,0.00053424,120]
[320995133,1711732287939,-4563.14,0.00053424,120]
[320995134,1711732287951,-4563.14,0.00053698,120]
[320995135,1711732287961,-3804.88,0.00053698,120]
[320995136,1711732287971,-4563.14,0.00053972,120]
[320995137,1711732287980,-3804.88,0.00053972,120]
[320995138,1711732287990,-151.0,0.00054,120]
[320995139,1711732288000,-151.0,0.00054,120]
[320995140,1711732288011,-656.94,0.00054246,120]
[320995141,1711732288020,-4563.14,0.00054246,120]
[320995142,1711732288030,-3804.88,0.00054246,120]
[320995143,1711732288039,-656.94,0.0005452,120]
[320995144,1711732288048,-500.0,0.0005452,2]
[320995145,1711732288058,-4563.14,0.0005452,120]
[320995146,1711732288067,-3804.88,0.0005452,120]
[320995147,1711732288077,-12278.04835439,0.00054525,2]
[320995148,1711732288507,-500.0,0.00052054,120]
[320995149,1711732288524,-903.67467065,0.00054525,2]
[320995150,1711732288537,-1000.0,0.00054562,120]
[320995151,1711732288559,-574.26092219,0.00054584,31]
[320995152,1711732288577,-1842.97411838,0.00054584,31]
[320995153,1711732288591,-155.41280561,0.00054585,60]
[320995154,1711732288604,-906.54112024,0.000546,30]
[320995155,1711732288619,-208.03707595,0.000546,7]
[320995156,1711732288633,-800.0,0.000546,30]
[320995157,1711732288646,-1000.0,0.00054609,120]
[320995158,1711732288660,-180.8,0.0005463,120]
[320995159,1711732288673,-1000.0,0.00054655,120]
[320995160,1711732288691,-1037.11921843,0.0005469,5]
[320995161,1711732288707,-356.7157563,0.00054695,120]
[320995162,1711732288721,-1773.25233019,0.00054695,2]
[320995163,1711732288735,-2964.94614804,0.000547,2]
[320995164,1711732288759,-381.97234474,0.000547,2]
[320995165,1711732288775,-152.94,0.000547,7]
[320995166,1711732288791,-229.20681182,0.00054702,120]
[320995167,1711732288917,-750.60105674,0.00051444,2]
[320995168,1711732288930,-1646.76443791,0.00051444,2]
[320995169,1711732288940,-500.0,0.00052328,120]
[320995170,1711732288952,-770.79318818,0.00054702,120]
[320995171,1711732288962,-1000.0,0.00054748,120]
[320995172,1711732288973,-13588.6600252,0.0005477,120]
[320995173,1711732288982,-200.0,0.00054794,120]
[320995174,1711732288993,-200.0,0.00054794,120]
[320995175,1711732289003,-200.0,0.00054794,120]
[320995176,1711732289013,-200.0,0.00054794,120]
[320995177,1711732289023,-200.0,0.00054794,120]
[320995178,1711732289032,-200.0,0.00054794,120]
[320995179,1711732289044,-200.0,0.00054794,120]
[320995180,1711732289053,-200.0,0.00054794,120]
[320995181,1711732289062,-200.0,0.00054794,120]
[320995182,1711732289071,-200.0,0.00054794,120]
[320995183,1711732289081,-200.0,0.00054794,120]
[320995184,1711732289091,-306.58,0.00054794,120]
[320995185,1711732289100,-602.34,0.00054794,120]
[320995186,1711732289111,-500.0,0.00054794,120]
[320995187,1711732289120,-500.0,0.00054794,120]
[320995188,1711732289130,-500.0,0.00054794,120]
[320995189,1711732289139,-500.0,0.00054794,120]
[320995190,1711732289149,-500.0,0.00054794,120]
[320995191,1711732289158,-500.0,0.00054794,120]
[320995192,1711732289170,-500.0,0.00054794,120]
[320995193,1711732289179,-500.0,0.00054794,120]
[320995194,1711732289188,-500.0,0.00054794,120]
[320995195,1711732289198,-263.85132664,0.00054794,120]
[320995196,1711732289208,-151.0,0.00054794,120]
[320995197,1711732289218,-500.0,0.00054794,120]
[320995198,1711732289227,-344.93,0.00054794,120]
[320995199,1711732289237,-500.0,0.00054794,120]
[320995200,1711732289246,-281.92334481,0.00054794,120]
[320995201,1711732289255,-500.0,0.00054794,120]
[320995202,1711732289266,-460.91497261,0.00054794,120]
[320995203,1711732289276,-500.0,0.00054794,120]
[320995204,1711732289287,-500.0,0.00054794,120]
[320995205,1711732289296,-500.0,0.00054794,120]
[320995206,1711732289306,-500.0,0.00054794,120]
[320995207,1711732289315,-557.74,0.00054794,120]
[320995208,1711732289325,-500.0,0.00054794,120]
[320995209,1711732289335,-500.0,0.00054794,120]
[320995210,1711732289344,-151.0,0.00054794,120]
[320995211,1711732289353,-500.0,0.00054794,120]
[320995212,1711732289362,-151.0,0.00054794,120]
[320995213,1711732289371,-500.0,0.00054794,120]
[320995214,1711732289380,-151.0,0.00054794,120]
[320995215,1711732289389,-671.55,0.00054794,120]
[320995216,1711732289398,-183.11751406,0.00054794,120]
[320995217,1711732289408,-500.0,0.00054794,120]
[320995218,1711732289417,-1061.14085781,0.00054794,120]
[320995219,1711732289426,-997.84,0.00054794,120]
[320995220,1711732289435,-500.0,0.00054794,120]
[320995221,1711732289905,-533.61,0.00054794,120]
[320995222,1711732289929,-500.0,0.00054794,120]
[320995223,1711732289947,-314.17176105,0.00054794,120]
[320995224,1711732289961,-500.0,0.00054794,120]
[320995225,1711732289971,-500.0,0.00054794,120]
[320995226,1711732289980,-589.13482501,0.00054794,120]
[320995227,1711732289990,-665.65,0.00054794,120]
[320995228,1711732289999,-500.0,0.00054794,120]
[320995229,1711732290009,-500.0,0.00054794,120]
[320995230,1711732290019,-500.0,0.00054794,120]
[320995231,1711732290028,-546.22,0.00054794,120]
[320995232,1711732290038,-202.53992599,0.00054794,120]
[320995233,1711732290047,-507.49,0.00054794,120]
[320995234,1711732290056,-318.19927463,0.00054794,120]
[320995235,1711732290066,-534.0,0.00054794,120]
[320995236,1711732290075,-500.0,0.00054794,120]
[320995237,1711732290084,-500.0,0.00054794,120]
[320995238,1711732290093,-500.0,0.00054794,120]
[320995239,1711732290102,-609.19415955,0.00054794,120]
[320995240,1711732290111,-500.0,0.00054794,120]
[320995241,1711732290120,-500.0,0.00054794,120]
[320995242,1711732290129,-1000.0,0.00054794,120]
[320995243,1711732290138,-1000.0,0.00054794,120]
[320995244,1711732290147,-1000.0,0.00054794,120]
[320995245,1711732290156,-500.0,0.00054794,120]
[320995246,1711732290165,-1000.0,0.00054794,120]
[320995247,1711732290174,-1000.0,0.00054794,120]
[320995248,1711732290182,-1113.94863823,0.00054794,120]
[320995249,1711732290191,-500.0,0.00054794,120]
[320995250,1711732290200,-500.0,0.00054794,120]
[320995251,1711732290209,-214.33764614,0.00054794,120]
[320995252,1711732290218,-666.0,0.00054794,120]
[320995253,1711732290228,-500.0,0.00054794,120]
[320995254,1711732290237,-520.26,0.00054794,120]
[320995255,1711732290246,-1906.05,0.00054794,120]
[320995256,1711732290256,-500.0,0.00054794,120]
[320995257,1711732290265,-500.0,0.00054794,120]
[320995258,1711732290274,-500.0,0.00054794,120]
[320995259,1711732290283,-500.0,0.00054794,120]
[320995260,1711732290292,-500.0,0.00054794,120]
[320995261,1711732290301,-184.87,0.00054794,120]
[320995262,1711732290310,-500.0,0.00054794,2]
[320995263,1711732290320,-500.0,0.00054794,120]
[320995264,1711732290329,-500.0,0.00054794,120]
[320995265,1711732290338,-500.0,0.00054794,120]
[320995266,1711732290347,-500.0,0.00054794,120]
[320995267,1711732290356,-684.29,0.00054794,120]
[320995268,1711732290365,-500.0,0.00054794,120]
[320995269,1711732290373,-319.75,0.00054794,120]
[320995270,1711732290382,-500.0,0.00054794,120]
[320995271,1711732290391,-539.83,0.00054794,120]
[320995272,1711732290399,-500.0,0.00054794,120]
[320995273,1711732290408,-500.0,0.00054794,120]
[320995274,1711732290417,-500.0,0.00054794,120]
[320995275,1711732290425,-1363.30810218,0.00054794,120]
[320995276,1711732290833,-500.0,0.00052054,120]
[320995277,1711732290844,-500.0,0.00052054,120]
[320995278,1711732290854,-500.0,0.00052054,120]
[320995279,1711732290864,-285.488665,0.00052328,120]
[320995280,1711732290877,-473.21459622,0.00052328,120]
[320995281,1711732290909,-0.18328283,0.00052328,120]
[320995282,1711732290976,-5000.0,0.00041987,2]
[320995283,1711732290985,-26.60212095,0.00052328,120]
[320995284,1711732290997,-500.0,0.0005315,120]
[320995285,1711732291006,-626.77003666,0.00053424,120]
[320995286,1711732291015,-342.83189782,0.00054794,120]
[320995287,1711732291024,-959.73,0.00054794,120]
[320995288,1711732291033,-500.0,0.00054794,120]
[320995289,1711732291043,-500.0,0.00054794,120]
[320995290,1711732291052,-540.13,0.00054794,120]
[320995291,1711732291061,-500.0,0.00054794,120]
[320995292,1711732291071,-636.24,0.00054794,120]
[320995293,1711732291080,-1600.31,0.00054794,120]
[320995294,1711732291089,-500.0,0.00054794,120]
[320995295,1711732291098,-583.92,0.00054794,120]
[320995296,1711732291107,-500.0,0.00054794,120]
[320995297,1711732291116,-500.0,0.00054794,120]
[320995298,1711732291126,-500.0,0.00054794,120]
[320995299,1711732291135,-500.0,0.00054794,120]
[320995300,1711732291144,-666.09,0.00054794,120]
[320995301,1711732291153,-500.0,0.00054794,120]
[320995302,1711732291163,-2866.09,0.00054794,120]
[320995303,1711732291173,-501.42,0.00054794,120]
[320995304,1711732291182,-695.15,0.00054794,120]
[320995305,1711732291191,-5650.1,0.00054794,120]
[320995306,1711732291200,-16788.45,0.00054794,120]
[320995307,1711732291209,-500.0,0.00054794,120]
[320995308,1711732291219,-500.0,0.00054794,120]
[320995309,1711732291228,-500.0,0.00054794,120]
[320995310,1711732291238,-3741.11,0.00054794,120]
[320995311,1711732291246,-1090.04044513,0.00054794,120]
[320995325,1711732660590,-155.0,0.0003,4]
[320995326,1711732660616,-3540.2846752,0.000377,4]
[320995327,1711732660638,-162.48347236,0.00037701,2]
[320995328,1711732660660,-59795.1717335,0.00037701,2]
[320995329,1711732668274,-155.0,0.00037701,2]
[320995330,1711732668294,-522.1392,0.00037792,2]
[320995331,1711732668314,-2469.4913,0.00037801,2]
[320995332,1711732668333,-155.29533923,0.00038185,4]
[320995333,1711732668353,-182.0,0.00038356,2]
[320995334,1711732668373,-520.17506475,0.00038571,4]
[320995335,1711732668393,-305.19256017,0.00038572,4]
[320995336,1711732668412,-9039.47106703,0.00038572,4]
[320995337,1711732668432,-45924.18111128,0.00038573,4]
[320995338,1711732668451,-312.8085,0.00038574,2]
[320995339,1711732668471,-96516.07416077,0.00038574,2]
[320995354,1711733331213,-182.0,0.00038356,2]
[320995355,1711733331236,-4120.0,0.00038473,4]
[320995359,1711733360135,-53.57282618,0.00038473,4]
[320995360,1711733360157,-152.66585958,0.00038474,2]
[320995361,1711733360183,-1559.80822284,0.00038474,11]
[320995362,1711733360204,-695.75419183,0.00038474,2]
[320995363,1711733360226,-11590.18491508,0.00038474,2]
[320995364,1711733360246,-3088.44582368,0.00038564,2]
[320995365,1711733360268,-253.214045,0.00038564,2]
[320995366,1711733360572,-162.77396038,0.00038571,2]
[320995367,1711733360598,-501.70445722,0.00038573,4]
[320995368,1711733360618,-3483.92583923,0.00038574,2]
[320995369,1711733360641,-4455.90585898,0.00038574,4]
[320995371,1711733374153,-311.48291724,0.00038474,2]
[320995372,1711733374177,-79164.93063156,0.00038574,4]
[320995389,1711733432591,-162.77396038,0.00038571,2]
[320995390,1711733432600,-2782.38188412,0.00038573,4]
[320995391,1711733432609,-30330.4684012,0.00038574,4]
[320995392,1711733432658,-6773.94332118,0.00038574,4]
[320995393,1711733432794,-89600.46476526,0.00038574,4]
[320995403,1711733437639,-215.21349236,0.00038474,2]
[320995404,1711733437648,-891580.61719685,0.00038574,4]
[320995405,1711733437658,-25197.777,0.00038574,2]
[320995406,1711733437668,-200.0,0.000389,14]
[320995407,1711733437678,-477.53316459,0.0004,4]
[320995408,1711733437691,-499.99,0.0004,2]
[320995409,1711733437700,-166.66,0.00040274,2]
[320995410,1711733437710,-1559.8082228,0.00040695,14]
[320995411,1711733437721,-152.66585958,0.00040718,9]
[320995412,1711733437731,-695.7541918,0.00040855,2]
[320995413,1711733437741,-11590.18491503,0.00040855,2]
[320995414,1711733437751,-311.48291724,0.00041977,2]
[320995415,1711733437760,-1559.8082228,0.00042915,17]
[320995416,1711733437770,-152.66585958,0.00042962,17]
[320995417,1711733437780,-695.7541918,0.00043235,2]
[320995418,1711733437789,-11590.18491503,0.00043235,2]
[320995419,1711733437799,-1848.74,0.00043862,120]
[320995420,1711733437809,-472.18,0.00044159,2]
[320995421,1711733437818,-327.44661613,0.00045,4]
[320995422,1711733437828,-1559.8082228,0.00045136,20]
[320995423,1711733437838,-152.66585958,0.00045206,26]
[320995424,1711733437848,-311.48291724,0.00045481,2]
[320995425,1711733437858,-695.7541918,0.00045616,2]
[320995426,1711733437867,-11590.18491503,0.00045616,2]
[320995427,1711733437877,-250.0,0.000457,2]
[320995428,1711733437887,-23890.0,0.00045704,2]
[320995429,1711733437896,-860.84,0.00045832,120]
[320995430,1711733437906,-1651.69,0.00045841,2]
[320995431,1711733437915,-250.0,0.0004585,120]
[320995432,1711733437925,-200.0,0.0004613,2]
[320995433,1711733437935,-472.18,0.00046423,2]
[320995434,1711733437945,-172.11,0.0004648,2]
[320995435,1711733437954,-200.0,0.00046485,120]
[320995436,1711733437966,-151.79,0.000471,2]
[320995437,1711733437976,-250.0,0.00047337,112]
[320995438,1711733437986,-160.15,0.00047337,15]
[320995439,1711733437995,-1017.54,0.00047337,2]
[320995440,1711733438005,-1559.8082228,0.00047356,23]
[320995441,1711733438015,-168.92,0.00047364,2]
[320995442,1711733438025,-152.66585958,0.00047449,34]
[320995444,1711733438035,-151.53,0.00047692,2]
[320995446,1711733438045,-920.0,0.0004773,2]
[320995448,1711733438055,-500.0,0.000479,17]
[320995450,1711733438065,-695.7541918,0.00047997,2]
[320995452,1711733438075,-11590.18491503,0.00047997,2]
[320995454,1711733438084,-168.58888889,0.00048,120]
[320995456,1711733438095,-169.45,0.00048082,2]
[320995457,1711733438104,-168.84,0.00048307,2]
[320995458,1711733438114,-168.58888889,0.00048603,120]
[320995459,1711733438124,-472.18,0.00048687,2]
[320995460,1711733438134,-16733.33728175,0.000487,2]
[320995461,1711733438146,-1039.0,0.000487,117]
[320995462,1711733438156,-152.37488024,0.00048721,30]
[320995463,1711733438166,-311.48291724,0.00048984,2]
[320995464,1711733438176,-7000.0,0.00049,120]
[320995465,1711733438187,-153.30888088,0.00049015,30]
[320995466,1711733438203,-153.30888088,0.00049176,30]
[320995467,1711733438213,-168.58888889,0.00049205,120]
[320995468,1711733438226,-500.0,0.00049315,30]
[320995469,1711733438237,-1180.0,0.00049315,60]
[320995470,1711733438246,-152.37488024,0.00049384,30]
[320995471,1711733438256,-3146.28060071,0.00049449,4]
[320995472,1711733438265,-1559.8082228,0.00049577,26]
[320995473,1711733438278,-152.66585958,0.00049693,43]
[320995474,1711733438288,-1170.11168537,0.00049764,4]
[320995475,1711733438298,-511.39066358,0.00049765,4]
[320995476,1711733438307,-3054.88944436,0.00049765,2]
[320995477,1711733438317,-168.58888889,0.00049808,120]
[320995478,1711733438327,-500.0,0.0004987,4]
[320995479,1711733438337,-500.0,0.0004987,4]
[320995480,1711733438346,-500.0,0.0004987,4]
[320995481,1711733438356,-500.0,0.0004987,4]
[320995482,1711733438365,-500.0,0.0004987,4]
[320995483,1711733438375,-500.0,0.0004987,4]
[320995484,1711733438384,-500.0,0.0004987,4]
[320995485,1711733438393,-500.0,0.0004987,4]
[320995486,1711733438403,-500.0,0.0004987,4]
[320995487,1711733438413,-500.0,0.0004987,4]
[320995488,1711733438422,-500.0,0.0004987,4]
[320995489,1711733438432,-500.0,0.0004987,4]
[320995490,1711733438442,-500.0,0.0004987,4]
[320995491,1711733438452,-500.0,0.0004987,4]
[320995492,1711733438461,-500.0,0.0004987,4]
[320995493,1711733438473,-500.0,0.0004987,4]
[320995494,1711733438482,-500.0,0.0004987,4]
[320995495,1711733438491,-500.0,0.0004987,4]
[320995496,1711733438500,-500.0,0.0004987,4]
[320995497,1711733438509,-605.0,0.0004987,4]
[320995498,1711733438530,-19106.79429431,0.0005,4]
[320995499,1711733438540,-19208.42968041,0.0005,30]
[320995500,1711733438550,-22054.88876554,0.0005,4]
[320995501,1711733438560,-23642.90495713,0.0005,4]
[320995502,1711733438570,-22065.12726873,0.0005,120]
[320995503,1711733438580,-151.0,0.0005,120]
[320995504,1711733438590,-1017.54,0.00050076,2]
[320995505,1711733438600,-1180.0,0.00050136,64]
[320995506,1711733438609,-151.53,0.00050177,2]
[320995507,1711733438619,-166.33000666,0.00050207,60]
[320995508,1711733438629,-160.4206419,0.00050216,60]
[320995509,1711733438639,-166.33000666,0.00050331,60]
[320995510,1711733438649,-456.0,0.00050343,7]
[320995511,1711733438660,-695.7541918,0.00050377,2]
[320995512,1711733438669,-11590.18491503,0.00050377,2]
[320995513,1711733438679,-168.58888889,0.00050411,120]
[320995514,1711733438689,-180.0,0.00050473,120]
[320995515,1711733438699,-346.42,0.00050616,30]
[320995516,1711733438709,-153.30888088,0.0005064,60]
[320995517,1711733438721,-472.18,0.00050951,2]
[320995518,1711733438732,-1180.0,0.00050958,68]
[320995519,1711733438743,-168.58888889,0.00051014,120]
[320995520,1711733438753,-174.3975,0.00051241,30]
[320995521,1711733438763,-156.65046783,0.0005148,60]
[320995522,1711733438773,-4604.24,0.000515,7]
[320995523,1711733438784,-4604.24,0.000515,7]
[320995524,1711733438793,-4604.24,0.000515,7]
[320995525,1711733438804,-4604.24,0.000515,7]
[320995526,1711733438813,-4604.24,0.000515,7]
[320995527,1711733438823,-4604.24,0.000515,7]
[320995528,1711733438833,-4604.24,0.000515,7]
[320995529,1711733438843,-4604.24,0.000515,7]
[320995530,1711733438853,-4604.24,0.000515,7]
[320995531,1711733438863,-4604.24,0.000515,7]
[320995532,1711733438873,-4604.24,0.000515,7]
[320995533,1711733438883,-4604.24,0.000515,7]
[320995534,1711733438893,-4604.24,0.000515,7]
[320995535,1711733438903,-4604.24,0.000515,7]
[320995536,1711733438913,-4604.24,0.000515,7]
[320995537,1711733438924,-4604.24,0.000515,7]
[320995538,1711733438934,-4604.24,0.000515,7]
[320995539,1711733438944,-4604.24,0.000515,7]
[320995540,1711733438958,-4604.24,0.000515,7]
[320995541,1711733438969,-4604.24,0.000515,7]
[320995542,1711733438979,-153.54,0.000515,7]
[320995543,1711733438989,-153.54,0.000515,7]
[320995544,1711733438999,-153.54,0.000515,7]
[320995545,1711733439009,-153.54,0.000515,7]
[320995546,1711733439019,-153.54,0.000515,7]
[320995547,1711733439029,-153.54,0.000515,7]
[320995548,1711733439039,-153.54,0.000515,7]
[320995549,1711733439049,-153.54,0.000515,7]
[320995550,1711733439059,-153.54,0.000515,7]
[320995551,1711733439069,-168.58888889,0.00051616,120]
[320995552,1711733439084,-157.73076923,0.00051643,60]
[320995553,1711733439094,-151.0,0.00051671,120]
[320995554,1711733439104,-1180.0,0.0005178,72]
[320995555,1711733439115,-1559.8082228,0.00051797,28]
[320995556,1711733439125,-800.0,0.000518,18]
[320995557,1711733439135,-1000.0,0.000519,18]
[320995558,1711733439145,-152.66585958,0.00051937,51]
[320995559,1711733439155,-5000.0,0.00051954,3]
[320995560,1711733439166,-5781.24779688,0.00052,120]
[320995561,1711733439176,-14284.56691632,0.00052,120]
[320995562,1711733439186,-5000.0,0.00052,120]
[320995563,1711733439198,-288.93678563,0.00052054,120]
[320995564,1711733439210,-502.3522339,0.00052054,120]
[320995565,1711733439220,-500.0,0.00052054,120]
[320995566,1711733439230,-511.20111498,0.00052054,120]
[320995567,1711733439239,-500.0,0.00052054,120]
[320995568,1711733439249,-500.0,0.00052054,120]
[320995569,1711733439258,-500.0,0.00052054,120]
[320995570,1711733439268,-212.31920952,0.00052054,120]
[320995571,1711733439280,-500.0,0.00052054,120]
[320995572,1711733439290,-500.0,0.00052054,120]
[320995573,1711733439300,-500.0,0.00052054,120]
[320995574,1711733439311,-500.0,0.00052054,120]
[320995575,1711733439320,-500.0,0.00052054,120]
[320995576,1711733439330,-500.0,0.00052054,120]
[320995577,1711733439340,-500.0,0.00052054,120]
[320995578,1711733439350,-500.0,0.00052054,120]
[320995579,1711733439359,-500.0,0.00052054,120]
[320995580,1711733439369,-500.0,0.00052054,120]
[320995581,1711733439379,-500.0,0.00052054,120]
[320995582,1711733439389,-514.68327567,0.00052054,120]
[320995583,1711733439398,-500.0,0.00052054,120]
[320995584,1711733439408,-500.0,0.00052054,120]
[320995585,1711733439417,-500.0,0.00052054,120]
[320995586,1711733439427,-500.0,0.00052054,120]
[320995587,1711733439437,-500.0,0.00052054,120]
[320995588,1711733439446,-500.0,0.00052054,120]
[320995589,1711733439456,-500.0,0.00052054,120]
[320995590,1711733439467,-500.0,0.00052054,120]
[320995591,1711733439477,-500.0,0.00052054,120]
[320995592,1711733439486,-504.71796659,0.00052054,120]
[320995593,1711733439496,-500.0,0.00052054,120]
[320995594,1711733439506,-500.0,0.00052054,120]
[320995595,1711733439515,-500.0,0.00052054,120]
[320995596,1711733439526,-500.0,0.00052054,120]
[320995597,1711733439537,-666.0,0.00052054,120]
[320995598,1711733439548,-555.61879458,0.00052054,120]
[320995599,1711733439558,-500.0,0.00052054,120]
[320995600,1711733439568,-500.0,0.00052054,120]
[320995601,1711733439578,-500.0,0.00052054,120]
[320995602,1711733439587,-500.0,0.00052054,120]
[320995603,1711733439598,-500.0,0.00052054,120]
[320995604,1711733439607,-500.0,0.00052054,120]
[320995605,1711733439618,-500.0,0.00052054,120]
[320995606,1711733439628,-500.0,0.00052054,120]
[320995607,1711733439638,-500.0,0.00052054,120]
[320995608,1711733439648,-500.0,0.00052054,120]
[320995609,1711733439658,-500.0,0.00052054,120]
[320995610,1711733439668,-500.0,0.00052054,120]
[320995611,1711733439678,-171.23681065,0.00052054,120]
[320995612,1711733439689,-500.0,0.00052054,120]
[320995613,1711733439698,-500.0,0.00052054,120]
[320995614,1711733439708,-500.0,0.00052054,120]
[320995615,1711733439719,-519.37632713,0.00052054,120]
[320995616,1711733439728,-500.0,0.00052054,120]
[320995617,1711733439738,-500.0,0.00052054,120]
[320995618,1711733439747,-500.0,0.00052054,120]
[320995619,1711733439757,-500.0,0.00052054,120]
[320995620,1711733439767,-471.99296241,0.00052054,120]
[320995621,1711733439777,-212.61,0.00052054,120]
[320995622,1711733439788,-500.0,0.00052054,120]
[320995623,1711733439799,-500.0,0.00052054,120]
[320995624,1711733439809,-500.0,0.00052054,120]
[320995625,1711733439819,-500.0,0.00052054,120]
[320995626,1711733439829,-500.0,0.00052054,120]
[320995627,1711733439839,-500.0,0.00052054,120]
[320995628,1711733439849,-42.05442036,0.00052054,120]
[320995629,1711733439868,-457.94557964,0.00052054,120]
[320995630,1711733439877,-500.0,0.00052054,120]
[320995631,1711733439887,-500.0,0.00052054,120]
[320995632,1711733439897,-500.0,0.00052054,120]
[320995633,1711733439906,-500.0,0.00052054,120]
[320995634,1711733439916,-500.0,0.00052054,120]
[320995635,1711733439926,-500.0,0.00052054,120]
[320995636,1711733439937,-284.81401608,0.00052054,120]
[320995637,1711733439947,-500.0,0.00052054,120]
[320995638,1711733439957,-500.0,0.00052054,120]
[320995639,1711733439967,-500.0,0.00052054,120]
[320995640,1711733439978,-500.0,0.00052054,120]
[320995641,1711733439989,-500.0,0.00052054,120]
[320995643,1711733439999,-500.0,0.00052054,120]
[320995645,1711733440009,-567.37323418,0.00052054,120]
[320995648,1711733440019,-500.0,0.00052054,120]
[320995650,1711733440030,-500.0,0.00052054,120]